bitfinex/quotes_ETHUSD_20240721
["timestamp","ask_amount","ask_price","bid_price","bid_amount"]
[1721564933299,0.04212391,3505.0,3504.5,2.4799954]
[1721564933617,0.04212391,3505.0,3504.6,0.99199816]
[1721564933818,0.04212391,3505.0,3504.4,3.45182555]
[1721564934017,0.04212391,3505.0,3504.5,2.48006068]
[1721564934223,0.04212391,3505.0,3504.6,0.99202427]
[1721564934387,0.04212391,3505.0,3504.4,3.45182555]
[1721564934589,0.04212391,3505.0,3504.5,2.480064]
[1721564934788,0.04212391,3505.0,3504.6,0.9920256]
[1721564934989,0.04212391,3505.0,3504.4,3.74580475]
[1721564935184,0.04212391,3505.0,3504.5,5.33349761]
[1721564935483,2.85287,3505.3,3504.7,2.4597]
[1721564935884,0.04217359,3505.2,3504.7,2.4597]
[1721564938600,0.04217359,3505.2,3504.7,5.313]
[1721564938801,0.04217359,3505.2,3504.8,0.99194818]
[1721564939098,0.04217359,3505.2,3504.7,6.21888147]
[1721564939305,2.85287,3505.3,3504.8,0.99194922]
[1721564939533,0.04168907,3505.1,3504.7,5.313]
[1721564939846,0.04166423,3505.0,3504.8,0.99194939]
[1721564940030,0.04166423,3505.0,3504.7,5.313]
[1721564940194,2.85287,3505.3,3504.8,0.99194924]
[1721564940395,0.04163939,3504.9,3504.7,5.313]
[1721564940595,2.85287,3505.3,3504.8,0.99194861]
[1721564940834,0.04161454,3504.8,3504.7,5.313]
[1721564941125,2.63119669,3505.6,3504.7,4.93957212]
[1721564941328,0.14510848,3505.5,3505.1,2.85297]
[1721564941624,0.04178843,3505.5,3505.1,2.85297]
[1721564947438,0.04178843,3505.5,3504.9,2.85314]
[1721564947842,2.3851,3505.4,3504.9,2.85314]
[1721564948012,2.42678491,3505.4,3504.9,2.85314]
[1721564948212,2.42678491,3505.4,3504.9,3.78496113]
[1721564952444,0.04168491,3505.4,3504.9,3.78496113]
[1721564952948,5.63102669,3505.6,3504.9,3.78496113]
[1721564953153,0.04061314,3505.3,3504.9,3.78496113]
[1721564953344,5.63102669,3505.6,3504.9,3.78496113]
[1721564953510,0.14510513,3505.5,3504.9,3.78496113]
[1721564953713,5.63102669,3505.6,3505.0,0.8818159]
[1721564953955,5.63102669,3505.6,3504.9,2.85314]
[1721564953956,0.04063798,3505.4,3504.9,2.85314]
[1721564954152,0.04061314,3505.3,3504.9,2.85314]
[1721564954510,5.63102669,3505.6,3504.9,2.85314]
[1721564954818,0.1451052,3505.5,3504.9,2.85314]
[1721564955016,0.04066282,3505.5,3505.0,2.85303]
[1721564961763,0.04066282,3505.5,3505.1,2.85298]
[1721564967563,2.3343,3505.4,3504.7,0.59828555]
[1721564967868,2.3343,3505.4,3504.5,2.8534]
[1721564967869,2.85291,3505.2,3504.5,2.8534]
[1721564968062,2.85291,3505.2,3504.6,2.47993802]
[1721564968267,2.85291,3505.2,3504.5,2.8534]
[1721564968463,2.85291,3505.2,3504.6,2.47996935]
[1721564968683,0.03958459,3505.1,3504.5,2.8534]
[1721564968970,0.03958459,3505.1,3504.6,5.33334673]
[1721564969271,0.03958459,3505.1,3504.7,0.99198669]
[1721564969467,0.03958459,3505.1,3504.6,2.85338]
[1721564969675,0.03958459,3505.1,3504.7,0.99196646]
[1721564969848,0.03958459,3505.1,3504.6,2.85338]
[1721564970049,0.03958459,3505.1,3504.7,0.99196546]
[1721564970249,0.03958459,3505.1,3504.6,2.85338]
[1721564970550,0.03958459,3505.1,3504.7,0.99196551]
[1721564970871,0.03958459,3505.1,3504.6,2.85338]
[1721564971031,0.03958459,3505.1,3504.7,0.99196021]
[1721564971235,0.03958459,3505.1,3504.6,2.85338]
[1721564971534,0.03958459,3505.1,3504.7,0.99196543]
[1721564971735,0.03958459,3505.1,3504.6,2.85338]
[1721564971936,0.03958459,3505.1,3504.7,0.99196833]
[1721564972172,0.03958459,3505.1,3504.6,2.85338]
[1721564974237,0.03958459,3505.1,3504.6,3.71998156]
[1721564974434,5.18706,3505.4,3504.6,3.71998156]
[1721564974753,5.18706,3505.4,3504.6,2.85338]
[1721564975251,0.03969507,3505.3,3504.6,2.85338]
[1721564976345,2.89251507,3505.3,3504.6,2.85338]
[1721564981277,2.89251507,3505.3,3504.7,2.85331]
[1721564981577,0.03969507,3505.3,3504.8,2.3049]
[1721564982883,0.03969507,3505.3,3504.8,5.15805]
[1721564983058,0.03969507,3505.3,3504.8,6.01901456]
[1721564983258,5.24166,3505.5,3504.8,6.01901456]
[1721564983584,5.24166,3505.5,3504.9,2.85314]
[1721564983784,0.03937467,3505.4,3504.9,2.85314]
[1721564992691,0.03937467,3505.4,3505.0,2.85303]
[1721564998079,0.03937467,3505.4,3505.0,5.70606]
[1721564998295,0.03937467,3505.4,3505.1,2.85297]
[1721564998613,0.03770232,3505.3,3505.2,5.7585]
[1721564998916,2.4325,3505.8,3505.2,5.7585]
[1721564999214,2.85238,3505.9,3505.2,5.7585]
[1721564999415,2.85238,3505.9,3504.7,0.89589598]
[1721564999416,2.4325,3505.6,3504.8,0.59726398]
[1721564999588,0.03779438,3505.5,3504.7,2.93226398]
[1721564999917,0.03779438,3505.5,3504.8,2.47977476]
[1721565000106,0.03779438,3505.5,3504.9,0.9919189]
[1721565000320,2.85275,3505.4,3504.7,5.78551398]
[1721565000528,2.85275,3505.4,3504.8,2.4798049]
[1721565000674,2.85275,3505.4,3504.9,0.99192196]
[1721565000867,2.85275,3505.4,3504.7,5.78551398]
[1721565001219,2.85275,3505.4,3504.8,2.47979338]
[1721565001368,2.85275,3505.4,3504.9,2.47973441]
[1721565001579,2.85275,3505.4,3504.7,6.68354214]
[1721565001909,2.85275,3505.4,3504.8,2.47969445]
[1721565002111,2.85275,3505.4,3504.9,2.47969396]
[1721565002401,2.85275,3505.4,3504.7,6.68354214]
[1721565002610,2.85275,3505.4,3504.8,2.4796856]
[1721565002904,2.85275,3505.4,3504.9,2.4796856]
[1721565003069,2.85275,3505.4,3504.7,6.68354214]
[1721565003276,5.28535,3505.3,3504.8,2.4796966]
[1721565003615,5.28535,3505.3,3504.5,3.45072398]
[1721565003842,5.28535,3505.3,3504.6,5.33326615]
[1721565004110,5.28535,3505.3,3504.6,2.85339]
[1721565005128,5.28535,3505.3,3504.7,0.99196055]
[1721565005289,5.28535,3505.3,3504.6,2.85339]
[1721565005785,2.4325,3505.3,3504.6,2.85339]
[1721565005982,2.85275,3505.4,3504.7,2.8533]
[1721565006395,2.47029438,3505.5,3504.7,2.8533]
[1721565006396,5.32296438,3505.5,3504.7,2.8533]
[1721565006688,5.32296438,3505.5,3504.8,3.84516238]
[1721565006895,5.32296438,3505.5,3504.8,2.85322]
[1721565007318,2.85276,3505.4,3504.8,2.85322]
[1721565007889,2.85276,3505.4,3504.6,2.85334]
[1721565008089,2.85276,3505.4,3504.7,2.4798829]
[1721565008286,2.85276,3505.4,3504.5,3.45072398]
[1721565008287,2.4325,3505.2,3504.5,0.59726398]
[1721565008487,2.4325,3505.2,3504.3,2.85361]
[1721565008697,2.85308,3505.0,3504.4,2.48011401]
[1721565008898,2.85308,3505.0,3504.3,2.85361]
[1721565009083,2.85308,3505.0,3504.4,0.99207225]
[1721565009309,2.85308,3505.0,3504.3,2.85361]
[1721565009884,3.14946093,3505.0,3504.3,2.85361]
[1721565015087,2.438,3504.9,3504.3,2.85361]
[1721565015314,2.438,3504.9,3504.3,3.7175754]
[1721565016329,2.85324,3504.8,3504.1,3.45104398]
[1721565016490,2.85324,3504.8,3504.2,2.48019495]
[1721565016689,2.85324,3504.8,3504.3,0.99207827]
[1721565016895,2.85324,3504.8,3504.1,2.85378]
[1721565017095,2.85324,3504.8,3504.2,2.48018307]
[1721565017324,2.85324,3504.8,3504.1,2.85378]
[1721565017633,2.438,3504.9,3504.2,5.33386277]
[1721565017927,0.03624095,3504.8,3504.3,0.99206504]
[1721565018134,2.438,3505.2,3504.5,2.85341]
[1721565018293,2.85287,3505.3,3504.4,6.33280293]
[1721565018294,0.03622097,3504.7,3504.4,5.34077]
[1721565018500,2.85287,3505.3,3504.5,0.534077]
[1721565018901,0.03640059,3505.2,3504.6,2.85336]
[1721565020491,0.03640059,3505.2,3504.7,2.85329]
[1721565022528,0.03640059,3505.2,3504.8,2.4873]
[1721565022733,5.29062,3505.6,3504.9,2.85308]
[1721565023022,5.29062,3505.6,3505.0,2.85306]
[1721565023216,0.03649045,3505.5,3505.0,2.85306]
[1721565024128,5.29046,3505.8,3505.0,2.85306]
[1721565024443,5.29046,3505.8,3504.8,5.34052]
[1721565024444,2.438,3505.8,3504.8,2.4873]
[1721565024680,0.03650282,3505.7,3504.9,0.99186643]
[1721565024821,0.03650282,3505.7,3504.8,2.4873]
[1721565025021,0.03650282,3505.7,3504.9,0.99185525]
[1721565025353,0.03650282,3505.7,3505.2,2.85289]
[1721565025724,0.03650282,3505.7,3505.3,2.85281]
[1721565026119,2.438,3505.8,3505.3,2.85281]
[1721565026665,0.03650282,3505.7,3505.3,2.85281]
[1721565027072,2.438,3505.8,3505.3,2.85281]
[1721565027249,0.03647799,3505.6,3505.3,2.85281]
[1721565027456,2.438,3505.8,3505.3,2.85281]
[1721565027657,0.03645315,3505.5,3505.3,2.85281]
[1721565027968,2.438,3505.8,3505.3,2.85281]
[1721565028121,0.0364023,3505.4,3505.3,2.85281]
[1721565028322,2.438,3505.8,3505.3,2.85281]
[1721565028862,0.03647682,3505.7,3505.3,2.85281]
[1721565029368,2.438,3505.8,3505.3,2.85281]
[1721565029701,0.03647682,3505.7,3505.3,2.85281]
[1721565030186,2.438,3505.8,3505.3,2.85281]
[1721565030393,0.03646155,3505.6,3505.3,2.85281]
[1721565030606,0.03648639,3505.7,3505.3,2.85281]
[1721565030901,2.438,3505.8,3505.3,2.85281]
[1721565031187,0.03522218,3505.6,3505.3,2.85281]
[1721565031340,0.03524702,3505.7,3505.3,2.85281]
[1721565031545,0.03519735,3505.5,3505.3,2.85281]
[1721565031745,2.438,3505.8,3505.3,2.85281]
[1721565031981,0.03517251,3505.4,3505.3,2.85281]
[1721565032194,5.25057,3506.1,3505.3,5.809393]
[1721565032399,2.3984,3506.1,3505.6,2.85257]
[1721565035477,2.3984,3506.1,3505.7,2.85248]
[1721565035653,5.25042,3506.3,3505.7,2.85248]
[1721565035857,2.3984,3506.3,3505.7,2.85248]
[1721565036558,2.3984,3506.6,3505.9,2.85229]
[1721565036748,3.268723,3506.6,3505.9,2.85229]
[1721565037261,3.268723,3506.6,3505.7,2.85248]
[1721565037262,3.268723,3506.6,3506.0,2.85224]
[1721565039080,0.0356055,3506.5,3506.0,2.85224]
[1721565039795,0.0356055,3506.5,3506.2,2.85208]
[1721565040095,5.14333,3506.9,3506.2,2.85208]
[1721565040292,6.57054752,3506.9,3506.2,2.85208]
[1721565040481,0.03570552,3506.8,3506.2,2.85208]
[1721565041996,0.03570552,3506.8,3506.3,2.85199]
[1721565042554,0.03570552,3506.8,3506.4,2.8519]
[1721565044385,0.03570552,3506.8,3506.2,2.85205]
[1721565045792,2.2918,3506.7,3505.8,2.373]
[1721565046108,2.88745738,3506.6,3505.9,2.85232]
[1721565049394,2.85185,3506.5,3505.8,5.2254]
[1721565049582,2.85185,3506.5,3505.8,5.65989817]
[1721565049910,2.2918,3506.3,3505.8,0.43449817]
[1721565050275,0.03556808,3506.2,3505.8,0.43449817]
[1721565050675,2.2918,3506.3,3505.8,0.43449817]
[1721565050974,0.03550217,3506.1,3505.7,5.22549]
[1721565051174,2.2918,3506.3,3505.7,5.22549]
[1721565051175,0.03552699,3506.2,3505.7,5.22549]
[1721565051410,0.03547734,3506.0,3505.7,5.22549]
[1721565051600,0.03550217,3506.1,3505.7,5.22549]
[1721565051795,0.0354525,3505.9,3505.7,5.22549]
[1721565052113,2.85198,3506.4,3505.8,0.807814]
[1721565052408,2.85198,3506.4,3505.8,2.85241]
[1721565053907,0.03557799,3506.3,3505.8,2.85241]
[1721565060802,2.2918,3506.5,3505.8,2.85241]
[1721565061004,0.03559425,3506.2,3505.9,2.85229]
[1721565061217,2.2918,3506.5,3505.9,2.85229]
[1721565061530,2.2918,3506.5,3506.0,2.85223]
[1721565061711,0.0356439,3506.4,3506.0,2.85223]
[1721565069598,0.0356439,3506.4,3506.1,5.15211]
[1721565069801,0.29791393,3506.9,3506.3,2.852]
[1721565070237,0.03575151,3506.8,3506.3,2.852]
[1721565073006,0.03575151,3506.8,3506.1,5.15211]
[1721565073209,2.305,3506.7,3506.1,2.85211]
[1721565073541,0.03570187,3506.6,3506.1,2.85211]
[1721565073837,0.03570187,3506.6,3506.1,3.7342504]
[1721565078853,0.03570187,3506.6,3506.3,2.85198]
[1721565079427,3.14943393,3506.9,3506.3,2.85198]
[1721565079642,0.03567705,3506.5,3506.3,2.85198]
[1721565079844,3.14943393,3506.9,3506.3,2.85198]
[1721565080009,0.03565223,3506.4,3506.3,2.85198]
[1721565080343,0.03565223,3506.4,3506.3,3.74211304]
[1721565080544,3.14943393,3506.9,3506.3,3.74211304]
[1721565080745,0.03565223,3506.4,3506.3,2.85198]
[1721565080933,3.14943393,3506.9,3506.3,2.85198]
[1721565081129,0.03565223,3506.4,3506.3,2.85198]
[1721565081337,3.14943393,3506.9,3506.3,2.85198]
[1721565081542,0.03565223,3506.4,3506.3,2.85198]
[1721565081710,3.14943393,3506.9,3506.3,3.653899]
[1721565081911,3.14943393,3506.9,3506.3,2.85198]
[1721565082248,0.03575151,3506.8,3506.3,2.85198]
[1721565084953,0.03575151,3506.8,3506.0,5.16731]
[1721565085129,0.03575151,3506.8,3506.1,2.85216]
[1721565085130,2.85174,3506.7,3506.1,2.85216]
[1721565087355,2.85174,3506.7,3506.1,3.654118]
[1721565088651,2.3708,3506.6,3506.1,3.654118]
[1721565088948,0.03568855,3506.5,3506.1,3.654118]
[1721565092574,2.85174,3506.7,3506.1,3.654118]
[1721565092747,0.03566373,3506.4,3506.1,3.654118]
[1721565092949,2.85174,3506.7,3506.2,0.6506438]
[1721565093137,2.85174,3506.7,3506.1,3.654118]
[1721565093138,0.0356389,3506.3,3506.1,3.654118]
[1721565093332,2.85174,3506.7,3506.1,3.654118]
[1721565093538,0.03561407,3506.2,3506.1,3.654118]
[1721565093855,2.85174,3506.7,3506.1,3.654118]
[1721565094054,0.03561407,3506.2,3506.1,3.654118]
[1721565094559,2.85174,3506.7,3506.1,3.654118]
[1721565094751,0.03561407,3506.2,3506.1,2.85216]
[1721565094936,2.85174,3506.7,3506.1,2.85216]
[1721565095136,0.03561407,3506.2,3506.1,2.85216]
[1721565095358,2.85174,3506.7,3506.1,2.85216]
[1721565095548,0.03561407,3506.2,3506.1,2.85216]
[1721565095747,2.85174,3506.7,3506.1,3.654118]
[1721565096057,0.03561407,3506.2,3506.1,2.85216]
[1721565096257,2.85174,3506.7,3506.1,2.85216]
[1721565096464,0.03561407,3506.2,3506.1,5.70433]
[1721565096667,0.29791393,3506.9,3506.3,2.852]
[1721565096668,3.14944393,3506.9,3506.3,2.852]
[1721565097071,0.03576044,3506.8,3506.3,2.852]
[1721565097586,0.03576044,3506.8,3506.1,5.29086]
[1721565097732,0.03576044,3506.8,3506.1,6.1649034]
[1721565097939,0.03576044,3506.8,3506.2,2.85208]
[1721565106577,0.03576044,3506.8,3506.3,2.85199]
[1721565106871,0.03576044,3506.8,3506.4,2.85192]
[1721565112686,0.03576044,3506.8,3506.2,2.85203]
[1721565112986,0.03576044,3506.8,3506.1,3.3127434]
[1721565113189,0.03576044,3506.8,3506.2,3.49722407]
[1721565113482,0.03576044,3506.8,3506.5,2.85184]
[1721565116754,0.03576044,3506.8,3506.6,2.85168]
[1721565117053,0.29834589,3507.0,3506.7,2.85168]
[1721565117294,0.29834589,3507.0,3506.8,0.53690085]
[1721565121157,0.29834589,3507.0,3506.8,3.44552897]
[1721565121364,0.29834589,3507.0,3506.9,2.3477]
[1721565121661,0.29834589,3507.0,3506.9,5.19922]
[1721565122484,0.33106003,3507.0,3506.9,5.19922]
[1721565122684,0.33106003,3507.0,3506.9,6.05799209]
[1721565125878,0.33106003,3507.0,3506.9,8.90951209]
[1721565126291,0.29834589,3507.0,3506.9,8.90951209]
[1721565127300,0.29834589,3507.0,3506.9,9.90074338]
[1721565127629,0.29763721,3507.9,3507.4,2.8511]
[1721565128668,0.29763721,3507.9,3507.4,5.2184]
[1721565129174,0.03188961,3507.8,3507.4,5.2184]
[1721565130305,0.03188961,3507.8,3507.4,5.93723175]
[1721565136213,0.03188961,3507.8,3507.4,3.08613175]
[1721565137440,2.47678961,3507.8,3507.4,0.71883175]
[1721565137725,2.47678961,3507.8,3507.0,2.351]
[1721565137726,2.85093,3507.7,3507.0,5.20241]
[1721565138133,0.0307501,3507.6,3507.0,5.20241]
[1721565138433,0.0307501,3507.6,3507.1,0.94496829]
[1721565140524,0.0307501,3507.6,3507.1,3.79630829]
[1721565140735,0.0307501,3507.6,3507.3,5.20213]
[1721565140900,0.29763721,3507.9,3507.3,5.25914553]
[1721565141092,0.03072529,3507.5,3507.3,5.25914553]
[1721565141296,0.29763721,3507.9,3507.4,0.90553738]
[1721565143199,0.29763721,3507.9,3507.4,0.96255311]
[1721565143594,0.29763721,3507.9,3507.4,3.81365311]
[1721565144022,0.03079064,3507.8,3507.4,3.81365311]
[1721565146315,0.03079064,3507.8,3507.4,3.75663738]
[1721565147032,0.03079064,3507.8,3507.3,2.351]
[1721565147215,2.38059064,3507.8,3506.9,3.71023209]
[1721565147418,2.85096,3507.6,3507.0,3.0]
[1721565147637,0.03075068,3507.7,3507.0,3.0]
[1721565147857,5.20064,3507.8,3507.0,7.4194176]
[1721565147858,0.03070107,3507.5,3507.0,7.4194176]
[1721565148061,5.20064,3507.8,3507.0,7.4194176]
[1721565148345,0.03067626,3507.4,3507.0,7.4194176]
[1721565148546,5.20064,3507.8,3507.0,7.4194176]
[1721565148745,0.03063731,3507.3,3507.0,7.4194176]
[1721565148917,0.03063731,3507.3,3507.1,1.11297897]
[1721565149115,5.20064,3507.8,3507.1,1.11297897]
[1721565149317,0.03062663,3507.2,3507.1,1.11297897]
[1721565149514,5.20064,3507.8,3507.1,1.11297897]
[1721565150054,0.03073771,3507.7,3507.1,3.96432897]
[1721565150250,5.20064,3507.8,3507.2,0.85323266]
[1721565150549,0.03072806,3507.6,3507.2,2.85127]
[1721565150757,0.03073874,3507.7,3507.2,2.85127]
[1721565150915,0.29763721,3507.9,3507.2,2.85127]
[1721565150916,0.03068912,3507.5,3507.2,2.85127]
[1721565151121,0.03072806,3507.6,3507.2,2.85127]
[1721565151425,0.29763721,3507.9,3507.3,1.096332]
[1721565151631,0.03068912,3507.5,3507.3,1.096332]
[1721565151830,0.29763721,3507.9,3507.3,1.096332]
[1721565152063,0.03067845,3507.4,3507.2,2.85127]
[1721565152348,0.29763721,3507.9,3507.2,2.85127]
[1721565152557,0.03065364,3507.3,3507.2,2.85127]
[1721565153041,0.29763721,3507.9,3507.2,2.85127]
[1721565153237,0.0306395,3507.3,3507.2,2.85127]
[1721565153461,2.3318,3507.5,3506.9,2.85151]
[1721565153659,2.3318,3507.5,3506.4,9.6731]
[1721565153823,2.3318,3507.5,3506.4,2.3931]
[1721565153824,2.85141,3507.1,3506.4,2.3931]
[1721565154027,2.8512,3507.3,3506.4,5.24501]
[1721565154228,0.0305618,3507.0,3506.4,6.054718]
[1721565154537,2.85128,3507.2,3506.4,6.054718]
[1721565154746,0.03053698,3506.9,3506.4,6.054718]
[1721565155057,0.03051216,3506.8,3506.4,6.054718]
[1721565155234,2.85128,3507.2,3506.4,6.054718]
[1721565155433,0.03048734,3506.7,3506.4,6.054718]
[1721565155657,2.85128,3507.2,3506.5,0.8906788]
[1721565155952,0.03050146,3506.6,3506.4,5.24501]
[1721565156154,2.85128,3507.2,3506.4,5.24501]
[1721565156458,5.70262,3507.2,3506.4,5.24501]
[1721565156678,0.0306515,3507.1,3506.4,2.85191]
[1721565158374,2.8820315,3507.1,3506.4,2.85191]
[1721565158859,2.8820315,3507.1,3506.2,2.85207]
[1721565159066,2.8820315,3507.1,3506.3,1.109741]
[1721565159237,2.8820315,3507.1,3506.3,3.961741]
[1721565168478,2.4274,3507.0,3506.3,3.961741]
[1721565168672,2.45700343,3507.0,3506.3,3.961741]
[1721565183801,2.45700343,3507.0,3506.4,2.85192]
[1721565184029,2.45700343,3507.0,3506.4,3.32212976]
[1721565184362,5.30845343,3507.0,3506.4,3.32212976]
[1721565184562,2.85175,3506.7,3506.0,3.0]
[1721565184862,0.02861467,3506.6,3506.0,2.85223]
[1721565185064,0.02861467,3506.6,3506.1,2.85216]
[1721565185316,2.85154,3506.9,3506.2,3.364346]
[1721565185462,0.02854226,3506.5,3506.2,3.364346]
[1721565185793,2.85154,3506.9,3506.2,3.364346]
[1721565186113,2.4274,3507.0,3506.4,2.85191]
[1721565186399,0.02864165,3506.8,3506.4,2.85191]
[1721565186619,0.02866646,3506.9,3506.4,3.7005856]
[1721565186764,0.02863276,3506.7,3506.4,3.7005856]
[1721565187164,2.4274,3507.0,3506.4,3.7005856]
[1721565187364,0.02859381,3506.6,3506.4,2.85191]
[1721565187564,2.4274,3507.0,3506.4,2.85191]
[1721565187794,0.02856899,3506.5,3506.4,2.85191]
[1721565188206,2.4274,3507.0,3506.4,2.85191]
[1721565188392,0.02866825,3506.9,3506.4,2.85191]
[1721565188605,0.02866825,3506.9,3506.4,3.7005856]
[1721565190451,0.02866825,3506.9,3506.5,2.85178]
[1721565196111,2.85129,3507.2,3506.5,2.85178]
[1721565196346,0.02861977,3507.1,3506.5,2.85178]
[1721565198538,2.85129,3507.2,3506.5,2.85178]
[1721565199051,0.02861977,3507.1,3506.5,2.85178]
[1721565199348,2.85129,3507.2,3506.5,2.85178]
[1721565199722,0.0286139,3507.1,3506.5,2.85178]
[1721565200109,2.85129,3507.2,3506.5,2.85178]
[1721565200314,0.0286139,3507.1,3506.5,2.85178]
[1721565200515,2.85129,3507.2,3506.6,2.85175]
[1721565200759,0.0286139,3507.1,3506.6,2.85175]
[1721565201133,2.85129,3507.2,3506.6,2.85175]
[1721565201327,0.14503826,3507.1,3506.6,2.85175]
[1721565201646,0.0286139,3507.1,3506.6,2.85175]
[1721565201838,2.85129,3507.2,3506.6,2.85175]
[1721565202050,0.0286139,3507.1,3506.6,2.85175]
[1721565202249,2.85129,3507.2,3506.6,2.85175]
[1721565202457,0.0286139,3507.1,3506.6,2.85175]
[1721565202660,2.85129,3507.2,3506.6,2.85175]
[1721565202813,0.0286139,3507.1,3506.6,2.85175]
[1721565203030,2.3482,3507.3,3506.6,2.85175]
[1721565203031,2.3482,3507.3,3506.7,2.85168]
[1721565203232,0.17367555,3507.2,3506.7,2.85168]
[1721565203432,0.02863871,3507.2,3506.7,2.85168]
[1721565207076,0.02863871,3507.2,3506.8,2.85156]
[1721565212158,0.02863871,3507.2,3506.6,2.85173]
[1721565213198,0.02863871,3507.2,3506.7,2.85161]
[1721565214809,2.87991871,3507.2,3506.5,2.85183]
[1721565214967,2.87991871,3507.2,3506.6,2.85175]
[1721565216395,2.85137,3507.1,3506.4,2.85187]
[1721565216581,2.2653,3507.0,3506.5,0.99147304]
[1721565216790,2.29388715,3507.0,3506.4,2.85187]
[1721565216978,2.29388715,3507.0,3506.5,0.99147552]
[1721565217183,2.29388715,3507.0,3506.4,3.8657976]
[1721565217380,2.29388715,3507.0,3506.5,2.47868898]
[1721565217583,2.29388715,3507.0,3506.4,3.8657976]
[1721565217773,5.14533715,3507.0,3506.5,2.4786887]
[1721565217971,5.14533715,3507.0,3506.4,1.0139276]
[1721565218178,5.14533715,3507.0,3506.5,2.4786854]
[1721565218487,5.14533715,3507.0,3506.3,5.87924398]
[1721565218710,5.14533715,3507.0,3506.4,2.47868743]
[1721565218918,5.14533715,3507.0,3506.5,2.47868743]
[1721565219075,5.14533715,3507.0,3506.3,6.57583469]
[1721565219409,5.14533715,3507.0,3506.4,2.4786933]
[1721565219569,5.14533715,3507.0,3506.5,2.4786933]
[1721565219769,5.14533715,3507.0,3506.3,6.57583469]
[1721565219973,5.14533715,3507.0,3506.4,2.4786886]
[1721565220170,5.14533715,3507.0,3506.5,2.4786886]
[1721565220370,5.14533715,3507.0,3506.3,6.57583469]
[1721565220583,5.14533715,3507.0,3506.4,6.41422395]
[1721565220918,5.14533715,3507.0,3506.5,0.99147531]
[1721565221114,5.14533715,3507.0,3506.4,3.93553567]
[1721565221322,5.14533715,3507.0,3506.5,0.99147492]
[1721565221524,5.14533715,3507.0,3506.4,3.93553567]
[1721565221886,5.14533715,3507.0,3506.5,0.99147693]
[1721565222080,5.14533715,3507.0,3506.4,3.93553567]
[1721565222297,5.14533715,3507.0,3506.5,0.99147689]
[1721565222499,5.14533715,3507.0,3506.4,3.93553567]
[1721565222720,5.14533715,3507.0,3506.5,0.99147679]
[1721565222895,5.14533715,3507.0,3506.4,3.93553567]
[1721565223091,5.14533715,3507.0,3506.5,0.9914768]
[1721565223292,5.14533715,3507.0,3506.4,3.93553567]
[1721565223498,5.14533715,3507.0,3506.5,0.99147664]
[1721565223709,5.11675,3507.0,3506.3,0.69659071]
[1721565224015,0.02757136,3506.9,3506.4,2.47877406]
[1721565224246,0.02757136,3506.9,3506.3,0.69659071]
[1721565224412,0.02757136,3506.9,3506.4,0.99152747]
[1721565224600,0.02757136,3506.9,3506.3,0.69659071]
[1721565224799,2.87910136,3506.9,3506.4,0.99152606]
[1721565225120,2.87910136,3506.9,3506.3,0.69659071]
[1721565225330,2.87910136,3506.9,3506.4,0.99152753]
[1721565225536,2.87910136,3506.9,3506.3,0.69659071]
[1721565225719,2.4853,3506.8,3506.2,0.59726398]
[1721565225917,2.4853,3506.8,3506.3,2.47883783]
[1721565226112,2.4853,3506.8,3506.0,0.89589598]
[1721565226113,2.85177,3506.6,3506.0,0.59726398]
[1721565226423,2.85177,3506.6,3506.1,0.99159199]
[1721565226424,2.4853,3506.5,3506.1,0.99159199]
[1721565226627,2.4853,3506.5,3505.9,2.85226]
[1721565226796,0.02745337,3506.4,3506.0,4.17133062]
[1721565226998,0.02745337,3506.4,3506.1,0.99161665]
[1721565227207,0.02745337,3506.4,3506.0,1.692289]
[1721565228435,0.02745337,3506.4,3506.1,0.99160422]
[1721565228751,0.02745337,3506.4,3506.0,1.692289]
[1721565229267,2.4853,3506.5,3506.0,1.692289]
[1721565229460,5.33722,3506.5,3505.8,3.04226398]
[1721565229658,5.33722,3506.5,3505.9,2.47904193]
[1721565229829,0.027478,3506.4,3506.0,0.99161677]
[1721565230148,0.027478,3506.4,3505.8,0.59726398]
[1721565230318,0.027478,3506.4,3505.9,3.15810348]
[1721565230520,0.027478,3506.4,3506.0,0.99161619]
[1721565230715,0.027478,3506.4,3505.9,0.679063]
[1721565231046,0.027478,3506.4,3506.0,0.99161608]
[1721565231253,0.027478,3506.4,3505.9,0.679063]
[1721565231761,0.027478,3506.4,3506.0,0.99161606]
[1721565232060,0.027478,3506.4,3505.9,0.679063]
[1721565232266,0.027478,3506.4,3506.0,0.99161632]
[1721565232557,0.027478,3506.4,3505.9,0.679063]
[1721565233083,0.027478,3506.4,3506.0,0.99160379]
[1721565233219,0.027478,3506.4,3505.9,0.679063]
[1721565233969,0.027478,3506.4,3506.0,0.99160149]
[1721565234146,0.027478,3506.4,3505.9,0.679063]
[1721565238554,0.027478,3506.4,3506.0,0.99157867]
[1721565238859,0.027478,3506.4,3505.9,3.531363]
[1721565239064,0.027478,3506.4,3506.0,1.40443584]
[1721565239263,0.027478,3506.4,3506.0,0.4128627]
[1721565243109,0.027478,3506.4,3506.0,3.2650827]
[1721565243976,5.13639,3506.7,3506.0,3.2650827]
[1721565244195,0.02741948,3506.3,3506.0,3.2650827]
[1721565244476,5.13639,3506.7,3506.1,0.45414097]
[1721565244683,0.02739466,3506.2,3506.0,2.85222]
[1721565245036,5.13639,3506.7,3506.0,2.85222]
[1721565245242,0.02736983,3506.1,3506.0,2.85222]
[1721565245442,0.02736983,3506.1,3506.0,3.84378677]
[1721565245879,5.13639,3506.7,3506.0,3.84378677]
[1721565246037,5.13639,3506.7,3506.0,2.85222]
[1721565246478,0.02749394,3506.6,3506.0,2.85222]
[1721565246684,0.02749394,3506.6,3506.0,3.5503217]
[1721565250020,2.2847,3506.5,3506.0,3.5503217]
[1721565250178,2.2847,3506.5,3506.0,2.85222]
[1721565250377,0.02744536,3506.4,3506.0,2.85222]
[1721565257099,0.02744536,3506.4,3506.1,2.85215]
[1721565257581,2.4367,3506.7,3506.1,2.85215]
[1721565257787,0.02731251,3506.3,3506.1,5.12835]
[1721565257988,2.4367,3506.7,3506.1,5.9861424]
[1721565258185,0.02737779,3506.2,3506.1,5.9861424]
[1721565258399,2.4367,3506.7,3506.1,5.9861424]
[1721565258602,0.02737779,3506.2,3506.1,5.9861424]
[1721565258891,2.4367,3506.7,3506.1,5.9861424]